[Event "II Llinars Open 2022"]
[Site "Llinars del Valles"]
[Date "2022.06.30"]
[Round "6.1"]
[White "Ayats Llobera, Gerard"]
[Black "Garcia Ramos, Daniel"]
[Result "1/2-1/2"]
[ECO "B12"]
[WhiteElo "2423"]
[BlackElo "2441"]
[Annotator "TA"]
[PlyCount "152"]
[EventDate "2022.06.24"]
[EventType "swiss"]
[EventCountry "ESP"]
[SourceTitle "playchess.com"]
[Source "ChessBase"]
[SourceQuality "1"]
[TimeControl "5400+30"]

{[%evp 9,152,0,35,6,6,0,50,65,104,100,102,108,75,66,83,66,102,89,76,106,208,208,171,129,217,220,185,147,194,184,165,183,187,173,241,240,199,185,188,188,188,188,187,187,188,185,192,196,232,219,217,209,253,249,233,233,255,270,326,333,500,499,783,445,477,484,539,525,543,570,579,563,529,493,696,686,654,581,716,697,696,668,659,572,500,20,20,20,20,20,20,20,20,20,20,20,20,20,20,20,20,20,20,20,20,20,20,20,20,20,20,20,20,20,20,20,22,22,22,22,21,20,20,20,20,20,20,20,20,20,20,20,20,20,20,20,20,20,20,20,20,20,20,0,0]} 1. e4 {[%emt 0:00:05]} c6 {[%emt 0:00:11]} 2. d4 {[%emt 0:00:07]} d5 {[%emt 0:00:03]} 3. f3 {[%emt 0:00:02]} dxe4 {[%emt 0:00:44]} 4. fxe4 {[%emt 0:00:26]} e5 {[%emt 0:00:08]} 5. Nf3 {[%emt 0:00:04]} Be6 {[%emt 0:00:07]} 6. Nbd2 {[%emt 0:05:57] Black should prevent Bc4. B12: Caro-Kann: Advance Variation.} (6. Nc3 $5 {[%cal Rf3e5]}) 6... exd4 {[%emt 0:03:03]} 7. Bc4 {[%emt 0:01:50] [#]} Nf6 $146 {[%emt 0:17:28]} ({Better is} 7... Nd7 $11) ({Predecessor:} 7... Bxc4 8. Nxc4 Bc5 9. O-O Qe7 10. e5 Nd7 11. Bg5 Qe6 12. Nd6+ Bxd6 13. exd6 Qxd6 14. Nxd4 f6 15. Bf4 Ne5 16. Nf5 Qxd1 17. Raxd1 g6 18. Nd6+ Ke7 19. Nxb7 a5 20. Nc5 {1-0 (20) Ivic,V (2571)-Pultinevicius,P (2528) Riga 2021}) 8. O-O $14 {[%emt 0:07:22] White is slightly better.} Nbd7 {[%emt 0:25:09]} 9. Bxe6 $1 {[%emt 0:11:46]} fxe6 {[%emt 0:00:07] [#]} 10. e5 $1 {[%emt 0:00:20]} Nd5 {[%emt 0:11:57] ...Ne3 is the strong threat.} 11. Ne4 {[%emt 0:01:06][%mdl 1024] White has strong compensation.} Qb6 $1 {[%emt 0:03:36]} 12. Nfg5 {[%emt 0:06:48]} (12. Qxd4 $6 Nxe5 13. Qxb6 Nxf3+ 14. Rxf3 axb6 $11) 12... O-O-O {[%emt 0:05:23]} 13. Nf7 {[%emt 0:03:04]} (13. Nxe6 $6 Re8 14. Nxf8 (14. Nxd4 Rxe5 15. Ng3 Bc5 $15) 14... Rexf8 $11) 13... Be7 {[%emt 0:04:01]} 14. Kh1 {[%emt 0:00:33] White is more active.} h5 {[%emt 0:01:39]} 15. Nxd8 $18 {[%emt 0:01:46]} (15. Nxh8 $6 Rxh8 16. Qd3 h4 $16) 15... Kxd8 {[%emt 0:02:28]} 16. Ng5 $36 {[%emt 0:02:33][%mdl 2048] White is in control.} Bxg5 {[%emt 0:00:31]} (16... Nxe5 $16 17. Nxe6+ Kc8 18. Nxg7 Ng4) 17. Bxg5+ {[%emt 0:00:05]} Kc8 {[%emt 0:00:06]} 18. Rb1 {[%emt 0:06:21]} Nxe5 {[%emt 0:07:23]} (18... c5 $16 19. Qe2 Kb8) 19. Qe2 {[%emt 0:01:41]} Ne3 {[%emt 0:00:26]} 20. Bxe3 {[%emt 0:00:54]} dxe3 {[%emt 0:00:05] [#]} 21. h3 {[%emt 0:06:01] Against Ng4} Qd4 {[%emt 0:03:32]} (21... Qc5 $142 22. Rbe1 Nc4) 22. Rbe1 {[%emt 0:07:48][%cal Bb1e1,Be1e3,Be3d3,Bd3d7][%mdl 32]} Nc4 {[%emt 0:02:29]} 23. b3 {[%emt 0:01:02][%mdl 64] Deflection} Nd6 {[%emt 0:00:06]} (23... Nd2 $2 24. Rf7) 24. Qxe3 {[%emt 0:02:00]} Qxe3 {[%emt 0:00:03]} 25. Rxe3 {[%emt 0:00:01][%mdl 4096] Endgame KRR-KRN} Nf5 {[%emt 0:00:01]} 26. Rd3 {[%emt 0:01:14]} ({And not} 26. Rxe6 Ng3+ 27. Kg1 Nxf1 28. Kxf1 Kd7 $11) 26... h4 {[%emt 0:00:29]} 27. Kh2 {[%emt 0:05:13]} Kc7 {[%emt 0:01:05]} 28. Re1 {[%emt 0:02:39]} Rh6 {[%emt 0:00:23]} 29. Red1 {[%emt 0:01:01]} Rf6 {[%emt 0:01:08]} 30. Rd7+ {[%emt 0:00:05]} Kb6 {[%emt 0:00:08]} 31. Rf1 {[%emt 0:00:49]} Rg6 {[%emt 0:01:46]} 32. b4 {[%emt 0:04:07][%cal Bb3b4,Bb4a5][%mdl 32]} Ne3 {[%emt 0:04:56]} 33. Rf2 {[%emt 0:01:04]} e5 {[%emt 0:00:16]} 34. a4 {[%emt 0:04:45] Black must now prevent Rff7.} a5 {[%emt 0:04:44]} (34... Ka6 {was worth a try.} 35. Re2 Rg3) 35. bxa5+ {[%emt 0:01:31]} Ka6 {[%emt 0:00:23]} (35... Kxa5 $142 36. Rxb7 Rf6) 36. c3 {[%emt 0:00:52]} e4 {[%emt 0:01:39]} 37. Rb2 {[%emt 0:02:03]} Nf1+ {[%emt 0:00:45]} 38. Kg1 {[%emt 0:00:12]} Ng3 {[%emt 0:00:05]} 39. Rbxb7 {[%emt 0:02:19][%csl Gd7][%cal Rb7a7]} Kxa5 {[%emt 0:00:04]} 40. Rb2 {[%emt 0:07:20][%cal Rd7a7]} Ka6 {[%emt 0:00:04] Inhibits Ra7+.} 41. a5 {[%emt 0:01:20]} c5 {[%emt 0:00:49]} (41... Rf6 $142 42. Rb6+ (42. Rxg7 $2 {gets mated.} Rf1+ 43. Kh2 Rh1#) 42... Kxa5) 42. Rd8 {[%emt 0:03:43][%cal Rd8a8]} Ka7 {[%emt 0:00:27] Prevents Ra8+.} 43. Rdb8 {[%emt 0:00:37]} Rf6 {[%emt 0:01:01]} 44. R2b7+ {[%emt 0:00:43]} Ka6 {[%emt 0:00:02] ( -> ...Rf1+)} 45. Rb6+ {[%emt 0:00:19]} Rxb6 {[%emt 0:00:07]} 46. Rxb6+ {[%emt 0:00:13]} Kxa5 {[%emt 0:00:02] KR-KN} 47. Rb2 {[%emt 0:00:34]} (47. Rb7 $18) 47... e3 $11 {[%emt 0:00:34] The position is equal.} 48. c4 {[%emt 0:00:20]} Ka4 {[%emt 0:00:11] Prevents Rb3.} 49. Rb5 {[%emt 0:00:39]} Ne2+ $1 {[%emt 0:00:28]} 50. Kf1 {[%emt 0:00:13]} Nf4 {[%emt 0:00:04]} 51. Rb7 {[%emt 0:00:49]} ({Reject} 51. Rxc5 e2+ 52. Kf2 Nd3+ 53. Kxe2 Nxc5 $17) 51... g5 {[%emt 0:01:38]} 52. Rb5 {[%emt 0:00:18]} Ka3 {[%emt 0:00:48]} 53. Ke1 {[%emt 0:01:18]} Ka4 {[%emt 0:01:11]} 54. Kd1 {[%emt 0:00:16]} e2+ {[%emt 0:00:55]} 55. Kd2 {[%emt 0:00:28]} Nxg2 {[%emt 0:00:27]} 56. Kxe2 {[%emt 0:00:05]} Nf4+ {[%emt 0:00:03]} 57. Kf3 {[%emt 0:00:34]} Nxh3 {[%emt 0:00:04]} 58. Rxc5 {[%emt 0:00:34] Hoping for Rb5.} Kb4 {[%emt 0:00:05]} 59. Rc8 {[%emt 0:00:12]} Nf4 {[%emt 0:00:08]} 60. c5 {[%emt 0:00:50]} Kb5 {[%emt 0:00:20]} 61. c6 {[%emt 0:00:13]} Kb6 {[%emt 0:00:12]} 62. c7 {[%emt 0:00:20]} Kb7 {[%emt 0:00:55]} 63. Rg8 {[%emt 0:00:08]} Kxc7 {[%emt 0:00:04]} 64. Rxg5 {[%emt 0:00:05]} Ne6 {[%emt 0:00:05]} 65. Rh5 {[%emt 0:00:06]} h3 {[%emt 0:00:06]} 66. Kg3 {[%emt 0:00:07]} Kd6 {[%emt 0:00:06]} 67. Rxh3 {[%emt 0:00:04]} Ke5 {[%emt 0:00:10]} 68. Rh5+ {[%emt 0:00:03]} Ke4 {[%emt 0:00:07]} 69. Kg4 {[%emt 0:00:07]} Nd4 {[%emt 0:00:06]} 70. Rh8 {[%emt 0:00:06]} Ne6 {[%emt 0:00:18]} 71. Rh1 {[%emt 0:00:29]} Ke5 {[%emt 0:00:35]} 72. Re1+ {[%emt 0:00:04]} Kd5 {[%emt 0:00:16]} 73. Kf5 {[%emt 0:00:19]} Nd4+ {[%emt 0:00:05]} 74. Kf6 {[%emt 0:00:03]} Nc6 {[%emt 0:00:46]} 75. Rd1+ {[%emt 0:00:05]} Nd4 {[%emt 0:00:14]} 76. Rxd4+ {[%emt 0:00:14]} Kxd4 {[%emt 0:00:02] Blacks defense is rewarded with a draw.  Weighted Error Value: White=0.24 (precise) /Black=0.22 (precise)} 1/2-1/2

[Event "II Llinars Open 2022"]
[Site "Llinars del Valles"]
[Date "2022.06.30"]
[Round "6.2"]
[White "Narciso Dublan, Marc"]
[Black "Munoz, Miguel"]
[Result "1-0"]
[ECO "B01"]
[WhiteElo "2464"]
[BlackElo "2421"]
[Annotator "TA"]
[PlyCount "43"]
[EventDate "2022.06.24"]
[EventType "swiss"]
[EventCountry "ESP"]
[SourceTitle "playchess.com"]
[Source "ChessBase"]
[SourceQuality "1"]
[TimeControl "5400+30"]

{[%evp 9,43,34,32,27,24,0,0,0,0,0,0,0,0,0,0,0,0,0,398,400,568,410,788,781,771,767,759,753,663,377,1582,1393,1393,1377,1327,1299]} 1. e4 {[%emt 0:00:04]} d5 {[%emt 0:06:09]} 2. exd5 {[%emt 0:00:26]} Qxd5 {[%emt 0:00:06]} 3. Nf3 {[%emt 0:00:18]} Bg4 {[%emt 0:00:20]} 4. Be2 {[%emt 0:00:16]} Nc6 {[%emt 0:00:09]} 5. O-O {[%emt 0:00:42]} O-O-O {[%emt 0:00:25]} 6. h3 {[%emt 0:00:25] B01: Scandinavian Defence.} Bh5 {[%emt 0:00:27]} 7. d4 {[%emt 0:00:32] Threatens to win with c4.} Bxf3 {[%emt 0:01:29]} 8. Bxf3 {[%emt 0:00:09] The position is equal.} Qxd4 {[%emt 0:00:05] [#]} 9. Nd2 $146 {[%emt 0:00:27][%cal Bb1d2,Bd2b3,Bb3a5][%mdl 32] [#] And now Bxc6 would win.} ({Predecessor:} 9. Qe2 Qe5 10. Bg4+ e6 11. Be3 Nf6 12. Nd2 Nxg4 13. Qxg4 Bd6 14. Nf3 Qf5 15. Qa4 {1-0 (25) Kett,T (2167)-Beulen,M (2359) Chess.com INT 2021}) 9... Ne5 {[%emt 0:00:18]} 10. Qe2 $1 {[%emt 0:00:31][%cal Of3b7]} Nf6 {[%emt 0:01:24]} 11. Bxb7+ {[%emt 0:03:05]} Kxb7 {[%emt 0:07:06]} 12. Nb3 $1 {[%emt 0:00:07]} Qd5 {[%emt 0:05:42] [#] Strongly threatening ...e6.} 13. Bf4 {[%emt 0:01:42]} Nf3+ $2 {[%emt 0:08:25][%mdl 8192]} 14. gxf3 $18 {[%emt 0:03:16]} Qf5 {[%emt 0:00:13]} (14... e5 $142) 15. Qc4 {[%emt 0:01:25]} e5 {[%emt 0:00:24]} (15... Rd6 $142 16. Bxd6 exd6) 16. Na5+ {[%emt 0:01:43]} Kc8 {[%emt 0:00:07]} 17. Qa6+ {[%emt 0:08:37]} Kd7 {[%emt 0:00:42]} 18. Qc6+ {[%emt 0:00:22]} Kc8 {[%emt 0:02:47]} 19. Bxe5 {[%emt 0:03:16][%csl Ge5][%cal Rc6c7]} Ne8 {[%emt 0:08:13]} (19... Qxe5 20. Qa8+ Kd7 21. Qxd8+ Kxd8 22. Nc6+ Kc8 23. Nxe5 Bc5 24. Nxf7 Rf8) 20. Qb7+ {[%emt 0:20:47] White is clearly winning.} Kd7 {[%emt 0:00:18]} 21. Qb5+ {[%emt 0:00:06]} Kc8 {[%emt 0:01:05]} 22. Nc6 {[%emt 0:01:14] Weighted Error Value: White=0.28 (precise) /Black=0.81} 1-0

[Event "II Llinars Open 2022"]
[Site "Llinars del Valles"]
[Date "2022.06.30"]
[Round "6.3"]
[White "Fanninger, Leon"]
[Black "Uber Gracia, Hugo"]
[Result "1/2-1/2"]
[ECO "B10"]
[WhiteElo "2157"]
[BlackElo "1915"]
[Annotator "NA RC"]
[PlyCount "46"]
[EventDate "2022.06.24"]
[EventType "swiss"]
[EventCountry "ESP"]
[SourceTitle "playchess.com"]
[Source "ChessBase"]
[SourceQuality "1"]
[TimeControl "5400+30"]

1. e4 {[%emt 0:07:17]} c6 {[%emt 0:00:18]} 2. d3 {[%emt 0:00:08]} d5 {[%emt 0:00:35]} 3. Nd2 {[%emt 0:00:06]} e5 {[%emt 0:00:34]} 4. Ngf3 {[%emt 0:00:20]} Bd6 {[%emt 0:00:35]} 5. d4 {[%emt 0:00:09]} exd4 {[%emt 0:00:54]} 6. Bd3 {[%emt 0:00:29]} Bg4 {[%emt 0:07:12]} 7. O-O {[%emt 0:00:33]} Ne7 {[%emt 0:02:02]} 8. exd5 {[%emt 0:00:30]} O-O {[%emt 0:04:09]} 9. Bxh7+ {[%emt 0:00:42]} Kh8 {[%emt 0:05:43]} 10. dxc6 {[%emt 0:02:42]} Nbxc6 {[%emt 0:02:26]} 11. Bd3 {[%emt 0:07:06]} Nd5 {[%emt 0:09:28]} 12. Ne4 {[%emt 0:14:23]} Bc7 {[%emt 0:02:24]} 13. Ng3 {[%emt 0:09:12]} Ndb4 {[%emt 0:10:24]} 14. Bf5 {[%emt 0:11:44]} Bxg3 {[%emt 0:15:25]} 15. Bxg4 {[%emt 0:00:10]} Bd6 {[%emt 0:02:54]} 16. Ng5 {[%emt 0:10:34]} g6 {[%emt 0:04:41]} 17. c3 {[%emt 0:19:12]} dxc3 {[%emt 0:07:22]} 18. bxc3 {[%emt 0:00:03]} Nd3 {[%emt 0:01:13]} 19. Be2 {[%emt 0:08:54]} Nxc1 {[%emt 0:04:53]} 20. Qxc1 {[%emt 0:00:02]} Qf6 {[%emt 0:03:09]} 21. Ne4 {[%emt 0:00:08]} Kg7 {[%emt 0:00:02]} 22. Qe3 Kh8 {[%emt 0:00:04]} 23. Ng5 Rae8 {[%emt 0:00:03]} 1/2-1/2

[Event "II Llinars Open 2022"]
[Site "Llinars del Valles"]
[Date "2022.06.30"]
[Round "6.4"]
[White "Parra Ordorica, Arnau"]
[Black "Segura Marsa, Andres"]
[Result "0-1"]
[ECO "E71"]
[WhiteElo "2001"]
[BlackElo "1862"]
[Annotator "NA RC"]
[PlyCount "60"]
[EventDate "2022.06.24"]
[EventType "swiss"]
[EventCountry "ESP"]
[SourceTitle "playchess.com"]
[Source "ChessBase"]
[SourceQuality "1"]
[TimeControl "5400+30"]

1. d4 {[%emt 0:00:02]} Nf6 {[%emt 0:03:32]} 2. c4 {[%emt 0:00:09]} g6 {[%emt 0:00:20]} 3. Nc3 {[%emt 0:00:07]} Bg7 {[%emt 0:00:28]} 4. e4 {[%emt 0:00:07]} d6 {[%emt 0:00:28]} 5. h3 {[%emt 0:00:06]} O-O {[%emt 0:00:41]} 6. Be3 {[%emt 0:00:10]} e5 {[%emt 0:00:40]} 7. d5 {[%emt 0:00:10]} Na6 {[%emt 0:00:41]} 8. g4 {[%emt 0:00:10]} Nc5 {[%emt 0:00:35]} 9. f3 {[%emt 0:00:06]} a5 {[%emt 0:00:38]} 10. Nge2 {[%emt 0:00:22]} c6 {[%emt 0:00:56]} 11. Ng3 {[%emt 0:00:13]} h5 {[%emt 0:02:07]} 12. gxh5 {[%emt 0:01:42]} Nxh5 {[%emt 0:00:21]} 13. Nxh5 {[%emt 0:01:43]} Qh4+ {[%emt 0:04:02]} 14. Bf2 {[%emt 0:03:19]} Qxh5 {[%emt 0:02:00]} 15. dxc6 {[%emt 0:00:25]} Ne6 {[%emt 0:05:23]} 16. cxb7 {[%emt 0:12:27]} Bxb7 {[%emt 0:00:12]} 17. Be3 {[%emt 0:13:07]} Qh4+ {[%emt 0:02:38]} 18. Kd2 {[%emt 0:01:07]} Nd4 {[%emt 0:05:29]} 19. Bxd4 {[%emt 0:16:36]} exd4 {[%emt 0:00:02]} 20. Nd5 {[%emt 0:00:33]} Bxd5 {[%emt 0:02:12]} 21. exd5 {[%emt 0:01:50]} Rfe8 {[%emt 0:12:37]} 22. Bd3 {[%emt 0:04:00]} Qf2+ {[%emt 0:01:54]} 23. Kc1 {[%emt 0:00:39]} Bh6+ {[%emt 0:03:57]} 24. Kb1 {[%emt 0:00:11]} Rab8 {[%emt 0:01:21]} 25. b3 {[%emt 0:00:32]} Bd2 {[%emt 0:02:16]} 26. a4 {[%emt 0:03:12]} Re3 {[%emt 0:05:25]} 27. Rf1 {[%emt 0:03:28]} Qg2 {[%emt 0:05:06]} 28. Rg1 {[%emt 0:04:14]} Rxb3+ {[%emt 0:13:44]} 29. Ka2 {[%emt 0:01:34]} Rb2+ {[%emt 0:00:28]} 30. Kxb2 {[%emt 0:05:20]} Bc3+ {[%emt 0:00:15]} 0-1

[Event "II Llinars Open 2022"]
[Site "Llinars del Valles"]
[Date "2022.06.30"]
[Round "6.5"]
[White "Casares Bonals, Asier"]
[Black "Serrano Batova, Vicent"]
[Result "0-1"]
[ECO "B76"]
[WhiteElo "1741"]
[BlackElo "1992"]
[Annotator "NA RC"]
[PlyCount "80"]
[EventDate "2022.06.24"]
[EventType "swiss"]
[EventCountry "ESP"]
[SourceTitle "playchess.com"]
[Source "ChessBase"]
[SourceQuality "1"]
[TimeControl "5400+30"]

1. e4 {[%emt 0:00:04]} c5 {[%emt 0:00:03]} 2. Nf3 {[%emt 0:00:08]} d6 {[%emt 0:00:03]} 3. d4 {[%emt 0:00:43]} cxd4 {[%emt 0:00:02]} 4. Nxd4 {[%emt 0:00:14]} Nf6 {[%emt 0:00:03]} 5. Nc3 {[%emt 0:00:36]} g6 {[%emt 0:00:05]} 6. Be3 {[%emt 0:02:28]} Bg7 {[%emt 0:00:12]} 7. Bc4 {[%emt 0:00:59]} O-O {[%emt 0:00:09]} 8. f3 {[%emt 0:00:29]} Nc6 {[%emt 0:00:08]} 9. Bb3 {[%emt 0:00:43]} Bd7 {[%emt 0:00:05]} 10. O-O {[%emt 0:04:17]} Rc8 {[%emt 0:02:06]} 11. Nxc6 {[%emt 0:02:50]} Bxc6 {[%emt 0:00:56]} 12. Qd2 {[%emt 0:01:06]} a6 {[%emt 0:02:12]} 13. a4 {[%emt 0:02:09]} Nd7 {[%emt 0:04:28]} 14. Bd4 {[%emt 0:04:33]} Nc5 {[%emt 0:02:09]} 15. Bxg7 {[%emt 0:10:31]} Kxg7 {[%emt 0:00:32]} 16. Ra3 {[%emt 0:04:18]} b5 {[%emt 0:02:46]} 17. axb5 {[%emt 0:02:38]} axb5 {[%emt 0:00:40]} 18. Nd5 {[%emt 0:12:39]} Bxd5 {[%emt 0:12:32]} 19. Bxd5 {[%emt 0:01:38]} e6 {[%emt 0:03:26]} 20. Qd4+ {[%emt 0:02:26]} Qf6 {[%emt 0:00:59]} 21. Qxf6+ {[%emt 0:00:19]} Kxf6 {[%emt 0:00:06]} 22. Bb3 {[%emt 0:03:01]} b4 {[%emt 0:01:17]} 23. Raa1 {[%emt 0:02:34]} Nxb3 {[%emt 0:01:20]} 24. cxb3 {[%emt 0:00:29]} Rc2 {[%emt 0:00:04]} 25. Rf2 {[%emt 0:02:14]} Rfc8 {[%emt 0:00:02]} 26. Rxc2 {[%emt 0:02:12]} Rxc2 {[%emt 0:00:36]} 27. Ra4 {[%emt 0:00:43]} Ke5 {[%emt 0:05:46]} 28. Rxb4 {[%emt 0:01:48]} f5 {[%emt 0:00:13]} 29. exf5 {[%emt 0:05:00]} gxf5 {[%emt 0:00:25]} 30. Rh4 {[%emt 0:10:58]} d5 {[%emt 0:02:09]} 31. Rxh7 {[%emt 0:00:51]} Kf4 {[%emt 0:00:28]} 32. Rd7 {[%emt 0:07:27]} Ke3 {[%emt 0:00:35]} 33. h4 {[%emt 0:00:33]} d4 {[%emt 0:10:26]} 34. g4 {[%emt 0:05:29]} fxg4 {[%emt 0:24:13]} 35. fxg4 {[%emt 0:00:06]} d3 {[%emt 0:01:11]} 36. h5 {[%emt 0:02:13]} d2 {[%emt 0:00:21]} 37. h6 {[%emt 0:01:55]} Rc8 {[%emt 0:08:03]} 38. h7 {[%emt 0:01:18]} Rh8 {[%emt 0:00:13]} 39. g5 {[%emt 0:00:37]} Rxh7 {[%emt 0:00:13]} 40. Rd6 {[%emt 0:00:54]} e5 {[%emt 0:00:52]} 0-1

[Event "II Llinars Open 2022"]
[Site "Llinars del Valles"]
[Date "2022.06.30"]
[Round "6.6"]
[White "Garre Montes, Marc"]
[Black "Valenzuela Gomez, Fernando"]
[Result "0-1"]
[ECO "C54"]
[WhiteElo "1887"]
[BlackElo "2373"]
[Annotator "RC"]
[PlyCount "80"]
[EventDate "2022.06.24"]
[EventType "swiss"]
[EventCountry "ESP"]
[SourceTitle "playchess.com"]
[Source "ChessBase"]
[SourceQuality "1"]
[TimeControl "5400+30"]

1. e4 {[%emt 0:00:03]} e5 {[%emt 0:06:50]} 2. Nf3 {[%emt 0:00:19]} Nc6 {[%emt 0:00:06]} 3. Bc4 {[%emt 0:00:09]} Nf6 {[%emt 0:00:15]} 4. d3 {[%emt 0:00:27]} Bc5 {[%emt 0:00:33]} 5. c3 {[%emt 0:00:10]} a5 {[%emt 0:01:12]} 6. a4 {[%emt 0:01:43]} d6 {[%emt 0:00:13]} 7. Nbd2 {[%emt 0:00:27]} O-O {[%emt 0:01:34]} 8. Nf1 {[%emt 0:00:38]} Be6 {[%emt 0:00:20]} 9. Bb3 {[%emt 0:01:29]} d5 {[%emt 0:01:01]} 10. exd5 {[%emt 0:01:53]} Bxd5 {[%emt 0:01:34]} 11. Bxd5 {[%emt 0:04:13]} Qxd5 {[%emt 0:00:21]} 12. Ne3 {[%emt 0:00:21]} Qd7 {[%emt 0:12:54]} 13. O-O {[%emt 0:06:56]} Rad8 {[%emt 0:00:16]} 14. Nc4 {[%emt 0:07:01]} e4 {[%emt 0:17:16]} 15. Nfe5 {[%emt 0:11:00]} Nxe5 {[%emt 0:04:43]} 16. Nxe5 {[%emt 0:00:22]} Qe6 {[%emt 0:00:24]} 17. d4 {[%emt 0:01:32]} Bd6 {[%emt 0:00:03]} 18. f4 {[%emt 0:05:43]} c5 {[%emt 0:00:04]} 19. Be3 {[%emt 0:10:27]} cxd4 {[%emt 0:00:24]} 20. cxd4 {[%emt 0:00:39]} Nd5 {[%emt 0:00:39]} 21. Qe2 {[%emt 0:04:27]} Bb8 {[%emt 0:00:13]} 22. f5 {[%emt 0:06:30]} Qd6 {[%emt 0:00:09]} 23. Bf2 {[%emt 0:07:38]} f6 {[%emt 0:01:44]} 24. Ng4 {[%emt 0:01:19]} h5 {[%emt 0:10:14]} 25. Bg3 {[%emt 0:00:33]} Qb6 {[%emt 0:00:38]} 26. Bxb8 {[%emt 0:00:56]} hxg4 {[%emt 0:00:21]} 27. Bg3 {[%emt 0:00:39]} Qxd4+ {[%emt 0:00:05]} 28. Kh1 {[%emt 0:00:15]} e3 {[%emt 0:00:32]} 29. Rad1 {[%emt 0:02:44]} Qe4 {[%emt 0:04:05]} 30. Qd3 {[%emt 0:04:28]} Qxa4 {[%emt 0:02:48]} 31. Rfe1 {[%emt 0:01:13]} Rfe8 {[%emt 0:00:42]} 32. Qd4 {[%emt 0:01:10]} Qxd4 {[%emt 0:01:31]} 33. Rxd4 {[%emt 0:00:05]} Ne7 {[%emt 0:00:41]} 34. Rxd8 {[%emt 0:00:37]} Rxd8 {[%emt 0:00:04]} 35. Rxe3 {[%emt 0:01:12]} Nxf5 {[%emt 0:00:07]} 36. Re1 {[%emt 0:00:04]} Rd2 {[%emt 0:00:44]} 37. Bc7 {[%emt 0:00:21]} a4 {[%emt 0:00:34]} 38. h3 {[%emt 0:00:21]} gxh3 {[%emt 0:00:19]} 39. gxh3 {[%emt 0:00:04]} Rxb2 {[%emt 0:00:17]} 40. Ra1 {[%emt 0:00:05]} b5 {[%emt 0:00:10]} 0-1

[Event "II Llinars Open 2022"]
[Site "Llinars del Valles"]
[Date "2022.06.30"]
[Round "6.7"]
[White "Jimenez Ruano, Adrian"]
[Black "Colome Rovira, Oscar"]
[Result "1-0"]
[ECO "D19"]
[WhiteElo "2263"]
[BlackElo "1735"]
[Annotator "NA RC"]
[PlyCount "47"]
[EventDate "2022.06.24"]
[EventType "swiss"]
[EventCountry "ESP"]
[SourceTitle "playchess.com"]
[Source "ChessBase"]
[SourceQuality "1"]
[TimeControl "5400+30"]

1. d4 {[%emt 0:00:02]} d5 {[%emt 0:00:14]} 2. c4 {[%emt 0:00:43]} c6 {[%emt 0:00:10]} 3. Nf3 {[%emt 0:00:08]} Nf6 {[%emt 0:00:09]} 4. Nc3 {[%emt 0:00:39]} dxc4 {[%emt 0:00:12]} 5. a4 {[%emt 0:00:31]} Bf5 {[%emt 0:00:15]} 6. e3 {[%emt 0:01:00]} e6 {[%emt 0:00:12]} 7. Bxc4 {[%emt 0:00:09]} Bb4 {[%emt 0:00:09]} 8. O-O {[%emt 0:00:15]} O-O {[%emt 0:00:09]} 9. Qe2 {[%emt 0:01:08]} Qe7 {[%emt 0:00:34]} 10. e4 {[%emt 0:01:04]} Bg4 {[%emt 0:07:45]} 11. Bg5 {[%emt 0:01:31]} h6 {[%emt 0:04:13]} 12. Bh4 {[%emt 0:01:28]} g5 {[%emt 0:06:53]} 13. Bg3 {[%emt 0:00:13]} Nbd7 {[%emt 0:00:22]} 14. Qe3 {[%emt 0:03:26]} Rfe8 {[%emt 0:07:47]} 15. Nxg5 {[%emt 0:03:20]} hxg5 {[%emt 0:01:30]} 16. Qxg5+ {[%emt 0:02:40]} Kh8 {[%emt 0:00:58]} 17. Qh4+ {[%emt 0:00:47]} Bh5 {[%emt 0:04:13]} 18. e5 {[%emt 0:00:47]} Rg8 {[%emt 0:00:11]} 19. exf6 {[%emt 0:00:35]} Nxf6 {[%emt 0:02:31]} 20. Be5 {[%emt 0:00:14]} Rg6 {[%emt 0:01:04]} 21. Qxh5+ {[%emt 0:00:25]} Kg7 {[%emt 0:00:03]} 22. Ne4 {[%emt 0:00:55]} Rh8 {[%emt 0:00:32]} 23. Bxf6+ {[%emt 0:00:14]} Rxf6 {[%emt 0:00:08]} 24. Qe5 {[%emt 0:01:37]} 1-0